lending/lending_fUSD_20240703
["ID","MTS","AMOUNT","RATE_DAILY","PERIOD"]
[331036138,1720019912146,237.3584633,0.00011199,2]
[331036139,1720019912209,276.15184313,0.00011199,2]
[331036140,1720019922306,276.15184313,0.00011199,2]
[331036143,1720019958999,2574.14215703,0.00011199,2]
[331036144,1720019963426,626.98777792,0.00011199,2]
[331036147,1720020161265,2375.40634291,0.00011199,2]
[331036148,1720020161924,2557.1335285,0.00011199,2]
[331036150,1720020256609,955.73097325,0.00011199,2]
[331036151,1720020292641,15430.31346419,0.00011199,2]
[331036152,1720020306814,10515.60566167,0.00011199,2]
[331036155,1720020368023,1075.22218458,0.00011199,2]
[331036156,1720020406233,5593.62205483,0.00011199,2]
[331036157,1720020425696,3455.93889557,0.00011199,2]
[331036161,1720020433479,1156.82676208,0.00011199,2]
[331036162,1720020437591,276.15184313,0.00011199,2]
[331036167,1720020467580,276.15184313,0.00011199,2]
[331036168,1720020511407,626.98777792,0.00011199,2]
[331036172,1720020593124,-1352.06296515,0.0001159,2]
[331036181,1720020633040,-445.36773485,0.0001159,2]
[331036183,1720020633050,-866.78226515,0.00012102,2]
[331036185,1720020633061,-31.78927285,0.00012102,2]
[331036186,1720020633070,-161.19035565,0.00012202,2]
[331036187,1720020633079,-2200.57256464,0.00012273,2]
[331036188,1720020633088,-2387.47048822,0.00013128,2]
[331036189,1720020633100,-638.09581755,0.00013128,2]
[331036190,1720020633109,-20002.69162742,0.00013128,2]
[331036191,1720020633118,-2445.6128013,0.00013128,2]
[331036192,1720020633128,-308.31366619,0.00013472,2]
[331036193,1720020633137,-10541.24799187,0.00013472,2]
[331036194,1720020633148,-276.15184313,0.00013516,2]
[331036195,1720020633158,-626.98777792,0.00013543,2]
[331036196,1720020633167,-908.03737989,0.00013574,2]
[331036197,1720020633176,-2289.2145,0.000139,2]
[331036198,1720020633185,-300.0,0.00014602,2]
[331036199,1720020633194,-500.0,0.00014602,2]
[331036200,1720020633203,-214.00416671,0.00015479,2]
[331036201,1720020633212,-214.00416671,0.00015479,2]
[331036202,1720020633221,-399.73,0.00016102,2]
[331036203,1720020633230,-2491.58422844,0.00017,2]
[331036204,1720020633239,-5000.0,0.00017159,2]
[331036205,1720020633248,-4251.41,0.00017371,2]
[331036206,1720020633257,-2000.0,0.00017658,3]
[331036207,1720020633266,-250.0,0.00017705,2]
[331036208,1720020633275,-200.0,0.00017836,2]
[331036209,1720020633284,-250.0,0.0001785,2]
[331036210,1720020633294,-200.0,0.00018,2]
[331036211,1720020633303,-345.15,0.00018217,2]
[331036212,1720020633313,-150.0,0.00018267,2]
[331036213,1720020633322,-399.73,0.00018366,2]
[331036214,1720020633331,-1807.6124017,0.00018649,2]
[331036215,1720020633340,-625.50090201,0.00018919,2]
[331036216,1720020633349,-787.19208309,0.00018999,2]
[331036217,1720020633358,-1250.0,0.00019,2]
[331036218,1720020633368,-155.0,0.00019069,2]
[331036219,1720020633377,-155.0,0.00019077,2]
[331036220,1720020633386,-155.22677378,0.00019077,2]
[331036221,1720020633397,-250.0,0.00019178,2]
[331036222,1720020633405,-2500.0,0.000195,2]
[331036223,1720020633555,-1000.0,0.0002,2]
[331036224,1720020633602,-244.0,0.0002,2]
[331036225,1720020633613,-200.0,0.0002,2]
[331036226,1720020633623,-200.0,0.00020065,2]
[331036227,1720020633633,-1000.0,0.000202,2]
[331036228,1720020633643,-150.0,0.00020247,2]
[331036229,1720020633652,-150.0,0.00020247,2]
[331036230,1720020633661,-150.0,0.00020247,2]
[331036231,1720020633670,-150.0,0.00020247,2]
[331036232,1720020633679,-271.63676533,0.00020287,2]
[331036233,1720020633687,-1041.86839,0.0002059,2]
[331036234,1720020633696,-287.70277472,0.000206,2]
[331036235,1720020633706,-400.0,0.000206,7]
[331036236,1720020633714,-201995.03372236,0.000206,2]
[331036237,1720020633727,-27964.29817764,0.000206,2]
[331036238,1720020633735,-399.73,0.0002063,2]
[331036239,1720020633744,-800.0,0.000207,7]
[331036240,1720020633754,-1983.87583329,0.000207,2]
[331036241,1720020633763,-287.70277464,0.00020756,2]
[331036242,1720020633772,-158.17,0.0002079,2]
[331036243,1720020633781,-150.0,0.00020795,2]
[331036244,1720020633790,-24647.33991007,0.000208,2]
[331036245,1720020633799,-169.80155418,0.000208,2]
[331036246,1720020633809,-882.16736644,0.000208,2]
[331036247,1720020633819,-448.19047151,0.000208,2]
[331036248,1720020633828,-14274.27682194,0.000208,2]
[331036263,1720020640521,-500.0,0.000208,2]
[331036264,1720020640534,-10119.16015425,0.000208,2]
[331036265,1720020641137,-91556.48635837,0.000208,2]
[331036267,1720020641152,-16650.71261015,0.000208,2]
[331036270,1720020641165,-767.52526339,0.000208,2]
[331036273,1720020641176,-541.6352726,0.000208,2]
[331036276,1720020641187,-1304.70038949,0.000208,2]
[331036429,1720020644809,-500.14298318,0.000208,2]
[331036430,1720020644820,-34484.99303155,0.000208,2]
[331036480,1720020646986,-3730.75585191,0.000208,2]
[331036482,1720020646996,-155.0,0.000208,2]
[331036484,1720020647006,-581.49834426,0.000208,2]
[331036486,1720020647016,-550.6201206,0.000208,2]
[331036488,1720020647025,-2000.0,0.000208,2]
[331036490,1720020647035,-200.0,0.000208,2]
[331036492,1720020647044,-200.0,0.000208,2]
[331036494,1720020647053,-2000.0,0.000208,2]
[331036496,1720020647063,-200.0,0.000208,2]
[331036498,1720020647072,-1200.0,0.000208,7]
[331036500,1720020647081,-33546.07958324,0.000208,2]
[331036502,1720020647093,-3090.73143742,0.000208,2]
[331036519,1720020647475,-322.66162028,0.000208,2]
[331036524,1720020868892,929.98752772,6.94e-05,2]
[331036532,1720021071336,-3265.9,0.00021,30]
[331036533,1720021075348,3967.2200595,8.412e-05,2]
[331036534,1720021087772,3071.57439988,0.00011199,2]
[331036536,1720021114047,-2117.9,0.00021,30]
[331036537,1720021131974,290.46265469,8.412e-05,2]
[331036538,1720021191738,197.28966074,0.00011199,2]
[331036539,1720021191764,1302.71033926,0.00011199,2]
[331036541,1720021213474,1133.76952232,0.00010196,2]
[331036542,1720021214689,282.582379,0.00010196,2]
[331036544,1720021252230,1500.0,0.00010196,2]
[331036547,1720021332850,650.65547744,0.00011199,2]
[331036548,1720021338552,1264.73271285,0.00011199,2]
[331036549,1720021360957,651.15085502,0.00011199,2]
[331036551,1720021406934,626.98777792,0.00011199,2]
[331036553,1720021455185,194.24643572,0.00011199,2]
[331036554,1720021467968,184.7840485,0.00011199,2]
[331036558,1720021478362,276.15184313,0.00011199,2]
[331036559,1720021480422,214.00416671,0.00011199,2]
[331036560,1720021483066,309.83496123,0.00011199,2]
[331036561,1720021484052,155.77985922,0.00011199,2]
[331036562,1720021485062,155.32834952,0.00011199,2]
[331036563,1720021491751,155.66355754,0.00011199,2]
[331036564,1720021496587,193.58819095,0.00011199,2]
[331036565,1720021502484,155.0,0.00011199,2]
[331036566,1720021506454,155.09550556,0.00011199,2]
[331036567,1720021508392,155.0,0.00011199,2]
[331036568,1720021514835,339.34174154,0.00011199,2]
[331036569,1720021517105,184.44295548,0.00011199,4]
[331036570,1720021527696,406.5808008,0.00011199,2]
[331036571,1720021533302,155.26295347,0.00011199,2]
[331036577,1720021578167,226.5848512,0.00011199,2]
[331036587,1720021632884,155.0,0.00011199,2]
[331036596,1720021678863,23934.54755633,0.00011199,2]
[331036599,1720021694275,-1052.180284,0.00011332,2]
[331036600,1720021694307,-591.87405073,0.0001139,2]
[331036601,1720021694337,-300.0,0.00011489,2]
[331036602,1720021694366,-1095.17736173,0.0001149,2]
[331036603,1720021694485,-1936.80098292,0.0001149,2]
[331036621,1720021761474,748.5343529,0.00011199,2]
[331036622,1720021771093,660.25476663,0.00011199,2]
[331036630,1720021774346,527.81158355,0.00011199,2]
[331036631,1720021775460,370.0430602,0.00011199,2]
[331036633,1720021796807,625.50090201,0.00011199,2]
[331036640,1720021813877,158.01594335,0.00011199,2]
[331036642,1720021815748,1500.0,0.00011199,2]
[331036657,1720021833102,-276.15184313,0.00012302,2]
[331036658,1720021833112,-214.00416671,0.00012314,2]
[331036659,1720021833121,-30.96836216,0.00012314,2]
[331036660,1720021833134,-124.20653128,0.00012314,2]
[331036661,1720021833144,-193.50529335,0.00012314,2]
[331036662,1720021833153,-285.04380365,0.00012314,2]
[331036663,1720021833162,-250.0,0.00012502,2]
[331036664,1720021833173,-300.0,0.00012545,2]
[331036665,1720021833183,-3514.7182499,0.00012546,2]
[331036666,1720021833195,-1213.93749004,0.00012546,2]
[331036667,1720021833207,-334.61,0.00012546,2]
[331036668,1720021833224,-6111.50426006,0.00012546,2]
[331036669,1720021833234,-200.82,0.00012546,2]
[331036670,1720021833244,-250.0,0.0001256,2]
[331036671,1720021833253,-1345.13,0.00012576,2]
[331036672,1720021833264,-150.0,0.00012989,2]
[331036674,1720021833274,-154.59,0.00013088,2]
[331036676,1720021833283,-150.99,0.00013088,2]
[331036678,1720021833292,-499.99,0.00013128,2]
[331036680,1720021833301,-202.44445,0.00013128,2]
[331036682,1720021833310,-196.12854204,0.00013128,2]
[331036683,1720021833319,-251.73218841,0.00013128,2]
[331036685,1720021833329,-195.23754001,0.00013128,2]
[331036687,1720021833337,-211.46410949,0.00013128,2]
[331036689,1720021833348,-218.40264018,0.00013128,2]
[331036691,1720021833357,-236.53352134,0.00013128,2]
[331036693,1720021833366,-155.14159365,0.00013128,2]
[331036695,1720021833375,-155.14682893,0.00013128,2]
[331036696,1720021833384,-155.0,0.00013128,2]
[331036697,1720021833393,-305.22946248,0.00013128,2]
[331036699,1720021833405,-232.70933143,0.00013128,2]
[331036701,1720021833414,-155.28848889,0.00013128,2]
[331036702,1720021833423,-190.21885143,0.00013128,2]
[331036704,1720021833432,-651.15085502,0.00013128,2]
[331036706,1720021833441,-155.54381844,0.00013128,2]
[331036707,1720021833449,-305.26949333,0.00013128,2]
[331036709,1720021833459,-158.25040673,0.00013128,2]
[331036711,1720021833468,-154.59,0.00013128,2]
[331036712,1720021833478,-154.59,0.00013169,2]
[331036713,1720021833486,-154.59,0.00013209,2]
[331036714,1720021833495,-154.59,0.00013249,2]
[331036715,1720021833504,-176.5,0.00013261,2]
[331036716,1720021833513,-154.59,0.00013289,2]
[331036717,1720021833522,-154.59,0.00013329,2]
[331036718,1720021833531,-154.59,0.00013369,2]
[331036719,1720021833539,-488.23,0.00013385,2]
[331036720,1720021833548,-154.59,0.00013409,2]
[331036721,1720021833557,-154.59,0.00013449,2]
[331036722,1720021833566,-115.5839522,0.00013472,2]
[331036723,1720021833593,-39.4160478,0.00013472,2]
[331036724,1720021833603,-346.03148912,0.00013472,2]
[331036725,1720021833612,-366.11090361,0.00013472,2]
[331036726,1720021833621,-194.87156642,0.00013472,2]
[331036727,1720021833631,-154.59,0.00013489,2]
[331036728,1720021833639,-194.02066443,0.00013516,2]
[331036729,1720021833648,-154.59,0.0001353,2]
[331036730,1720021833657,-154.59,0.0001357,2]
[331036731,1720021833667,-169.15913638,0.00013574,2]
[331036732,1720021833676,-155.0,0.00013574,2]
[331036733,1720021833685,-154.59,0.0001361,2]
[331036734,1720021833694,-154.59,0.0001365,2]
[331036735,1720021833703,-154.59,0.0001369,2]
[331036736,1720021833712,-169.87,0.00013699,2]
[331036737,1720021833720,-200.0,0.00013699,2]
[331036738,1720021833730,-1937.04,0.00013699,2]
[331036739,1720021833739,-377.86,0.00013699,2]
[331036740,1720021833748,-200.0,0.000137,5]
[331036741,1720021833757,-154.59,0.0001373,2]
[331036742,1720021833766,-150.99,0.00013736,2]
[331036743,1720021833775,-154.59,0.0001377,2]
[331036744,1720021833784,-500.0,0.000138,5]
[331036745,1720021833793,-155.81983845,0.00013899,2]
[331036746,1720021833802,-5191.2482,0.000139,2]
[331036747,1720021833811,-2469.488,0.000139,2]
[331036748,1720021833821,-169.08322514,0.000139,2]
[331036749,1720021833830,-5797.4853887,0.000139,2]
[331036750,1720021833847,-800.0,0.000139,5]
[331036751,1720021833866,-298.92947543,0.000139,2]
[331036752,1720021833887,-324.22859408,0.000139,2]
[331036753,1720021833905,-164.32613462,0.00013948,2]
[331036754,1720021833929,-169.88866675,0.00013948,2]
[331036755,1720021833946,-600.315,0.00013963,2]
[331036756,1720021833965,-2000.0,0.00013973,3]
[331036757,1720021833981,-198.97414249,0.0001399,2]
[331036758,1720021833997,-500.0,0.00013999,2]
[331036759,1720021834016,-500.0,0.00013999,2]
[331036760,1720021834034,-500.0,0.00013999,2]
[331036761,1720021834051,-500.0,0.00013999,2]
[331036762,1720021834065,-500.0,0.00013999,2]
[331036763,1720021834082,-500.0,0.00013999,2]
[331036764,1720021834095,-500.0,0.00013999,2]
[331036765,1720021834112,-500.0,0.00013999,2]
[331036766,1720021834125,-450.0,0.00013999,2]
[331036767,1720021834144,-500.0,0.00013999,2]
[331036768,1720021834158,-500.0,0.00013999,2]
[331036769,1720021834173,-322.7430439,0.00013999,2]
[331036770,1720021834187,-500.92296281,0.00013999,2]
[331036771,1720021834202,-500.0,0.00013999,2]
[331036772,1720021834216,-500.0,0.00013999,2]
[331036773,1720021834231,-500.0,0.00013999,2]
[331036774,1720021834245,-601.46673523,0.00013999,2]
[331036775,1720021834259,-500.0,0.00013999,2]
[331036776,1720021834274,-183.9174526,0.00013999,2]
[331036777,1720021834288,-500.0,0.00013999,2]
[331036778,1720021834302,-500.0,0.00013999,2]
[331036779,1720021834316,-500.0,0.00013999,2]
[331036780,1720021834331,-500.0,0.00013999,2]
[331036781,1720021834345,-500.0,0.00013999,2]
[331036782,1720021834364,-392.89500055,0.00013999,2]
[331036783,1720021834378,-500.0,0.00013999,2]
[331036784,1720021834393,-500.0,0.00013999,2]
[331036785,1720021834407,-500.0,0.00013999,2]
[331036786,1720021834421,-500.0,0.00013999,2]
[331036787,1720021834435,-500.0,0.00013999,2]
[331036788,1720021834449,-500.0,0.00013999,2]
[331036789,1720021834463,-500.0,0.00013999,2]
[331036790,1720021834477,-500.0,0.00013999,2]
[331036791,1720021834491,-792273.95680384,0.00014,2]
[331036792,1720021834509,-707.07731665,0.00014,2]
[331036793,1720021834525,-629.99914214,0.00014,2]
[331036794,1720021834541,-24543.98221601,0.00014,2]
[331036795,1720021834561,-371.6925449,0.00014,2]
[331036796,1720021834640,-876.11960137,0.00014,2]
[331036797,1720021834656,-84292.09396052,0.00014,2]
[331036798,1720021834680,-3111.40281369,0.00014,2]
[331036799,1720021834709,-300.0,0.00014,2]
[331036811,1720021837430,-380.58928978,0.00012314,2]
[331036813,1720021837439,-792.9777165,0.000139,2]
[331036815,1720021837451,-2137.09895117,0.000139,2]
[331036817,1720021837460,-2333.80989795,0.00014,2]
[331036818,1720021837471,-1275.15327242,0.00014,2]
[331036819,1720021837482,-710.733,0.00014,2]
[331036820,1720021837493,-9910.65475807,0.00014,2]
[331036821,1720021837517,-6960.4078046,0.00014,2]
[331036822,1720021837528,-5641.70032621,0.00014,2]
[331036823,1720021837539,-3044.06263733,0.00014,2]
[331036824,1720021837550,-12231.45819523,0.00014,2]
[331036825,1720021837571,-347.45730963,0.00014,2]
[331036826,1720021837624,-411.21176274,0.00014,2]
[331036827,1720021837636,-250.39418971,0.00014,2]
[331036828,1720021837647,-4505.37589723,0.00014,2]
[331036851,1720021839650,-12010.24693586,0.00014,2]
[331036852,1720021839662,-7260.00000008,0.00014,2]
[331036853,1720021839711,-4946.84493412,0.00014,2]
[331036854,1720021839777,-7935.78380387,0.00014,2]
[331036855,1720021839891,-214.00416671,0.00012302,2]
[331036856,1720021839901,-56390.04860353,0.00014,2]
[331036857,1720021839960,-3660.9773994,0.00014,2]
[331036858,1720021839972,-280.34733126,0.00014,2]
[331036859,1720021840024,-5605.36,0.00014,2]
[331036860,1720021840089,-807.73443717,0.00014,2]
[331036861,1720021840100,-18915.89558225,0.00014,2]
[331036897,1720021842643,-930.552031,0.00014,2]
[331036898,1720021842704,-6014.99120051,0.00014,2]
[331036899,1720021842766,-633.56217276,0.00014,2]
[331036900,1720021842827,-258.81862177,0.00014,2]
[331036942,1720021845541,-2009.85572357,0.00014,2]
[331037003,1720021846212,-85384.18083119,0.00014,2]
[331037007,1720021846223,-18130.87199999,0.00014,2]
[331038876,1720022904904,-517.38,0.00011442,2]
[331038877,1720022904940,-300.0,0.00011689,2]
[331038878,1720022904973,-2244.5466906,0.0001169,2]
[331038879,1720022905009,-3061.9266906,0.0001169,2]
[331038880,1720022905058,-3061.9266906,0.0001169,2]
[331038881,1720022905117,-3061.9266906,0.0001169,2]
[331038882,1720022905153,-1371.99976327,0.0001169,2]
[331038884,1720022964200,3022.81708204,0.00011199,2]
[331038894,1720023032339,-176.5,0.00013285,2]
[331038895,1720023032349,-200.0,0.0001329,2]
[331038896,1720023032358,-1000.0,0.00013341,2]
[331038897,1720023032367,-250.0,0.00013342,2]
[331038898,1720023032376,-300.0,0.00013698,2]
[331038899,1720023032387,-437.22,0.00013699,2]
[331038900,1720023032396,-10000.0,0.00013699,2]
[331038901,1720023032406,-517.38,0.00013706,2]
[331038902,1720023032415,-293.10344302,0.00013802,2]
[331038903,1720023032424,-150.0,0.00013899,2]
[331038904,1720023032433,-651.29314333,0.00013899,2]
[331038905,1720023032442,-4527.0996,0.000139,2]
[331038906,1720023032451,-1976.53,0.000139,2]
[331038907,1720023032460,-1251.2596,0.000139,2]
[331038908,1720023032469,-165.2776,0.000139,2]
[331038909,1720023032480,-26434.3915,0.000139,2]
[331038910,1720023032489,-5448.47007584,0.000139,2]
[331038911,1720023032498,-300.0,0.000139,5]
[331038912,1720023032507,-275.05026751,0.000139,2]
[331038913,1720023032516,-320.93062954,0.000139,2]
[331038914,1720023032525,-344.28606759,0.00013968,2]
[331038915,1720023032534,-2000.0,0.00013973,3]
[331038916,1720023032543,-197.03925798,0.0001399,2]
[331038917,1720023032552,-584129.94287436,0.00014,2]
[331038918,1720023032563,-1800.0,0.00014,2]
[331038927,1720023032574,-376.28217556,0.00014,2]
[331038928,1720023032790,-595.5625,0.00014,2]
[331038929,1720023032801,-307.8334,0.00014,2]
[331038932,1720023032842,-70266.96660027,0.00014,2]
[331038933,1720023032861,-393.9,0.00014,2]
[331038934,1720023032871,-310.34035984,0.00014,2]
[331038937,1720023032896,-1088.26645494,0.00014,2]
[331038971,1720023037697,-1090.69547689,0.000139,2]
[331038972,1720023037709,-1524.35353564,0.000139,2]
[331038973,1720023037719,-11240.55748214,0.00014,2]
[331038974,1720023037771,-507.95831037,0.00014,2]
[331039004,1720023040601,-354.54499983,0.00013889,2]
[331039014,1720023042704,-296.7481435,0.00013889,2]
[331039015,1720023042713,-6433.99411085,0.00014,2]
[331039016,1720023042724,-655.16092701,0.00014,2]
[331039017,1720023042768,-7033.95305865,0.00014,2]
[331039018,1720023042778,-2000.0,0.00014,2]
[331039019,1720023042788,-200.0,0.00014,2]
[331039020,1720023042796,-1740.87311352,0.00014,2]
[331039021,1720023042807,-200.0,0.00014,2]
[331039022,1720023042817,-2000.0,0.00014,2]
[331039023,1720023042826,-200.0,0.00014,2]
[331039024,1720023042835,-1166.37043,0.00014,2]
[331039025,1720023042844,-200.0,0.00014,2]
[331039026,1720023042854,-1363.93258346,0.00014048,2]
[331039027,1720023042863,-2000.0,0.0001414,2]
[331039028,1720023042872,-200.0,0.0001414,2]
[331039029,1720023042881,-200.0,0.0001414,2]
[331039030,1720023042889,-2000.0,0.0001414,2]
[331039031,1720023042898,-200.0,0.0001414,2]
[331039032,1720023042907,-200.0,0.0001414,2]
[331039033,1720023042916,-2000.0,0.00014281,2]
[331039034,1720023042925,-200.0,0.00014281,2]
[331039035,1720023042934,-200.0,0.00014281,2]
[331039036,1720023042944,-2000.0,0.00014281,2]
[331039037,1720023042953,-200.0,0.00014281,2]
[331039038,1720023042962,-200.0,0.00014281,2]
[331039039,1720023042971,-307.59113526,0.00014393,2]
[331039040,1720023042981,-247.95,0.00014409,2]
[331039041,1720023042990,-247.95,0.00014412,2]
[331039042,1720023042999,-247.95,0.00014416,2]
[331039043,1720023043008,-247.95,0.0001442,2]
[331039044,1720023043017,-1346.87,0.0001442,2]
[331039045,1720023043026,-247.95,0.00014424,2]
[331039046,1720023043035,-2000.0,0.00014424,2]
[331039047,1720023043044,-200.0,0.00014424,2]
[331039048,1720023043052,-200.0,0.00014424,2]
[331039049,1720023043061,-2000.0,0.00014424,2]
[331039050,1720023043070,-200.0,0.00014424,2]
[331039051,1720023043079,-200.0,0.00014424,2]
[331039052,1720023043087,-247.95,0.00014428,2]
[331039053,1720023043097,-247.95,0.00014431,2]
[331039054,1720023043106,-247.95,0.00014435,2]
[331039055,1720023043115,-247.95,0.00014439,2]
[331039056,1720023043124,-247.95,0.00014443,2]
[331039057,1720023043133,-247.95,0.00014446,2]
[331039058,1720023043142,-247.95,0.0001445,2]
[331039059,1720023043151,-247.95,0.00014454,2]
[331039060,1720023043160,-247.95,0.00014458,2]
[331039061,1720023043169,-247.95,0.00014462,2]
[331039062,1720023043179,-247.95,0.00014465,2]
[331039063,1720023043187,-247.95,0.00014469,2]
[331039064,1720023043196,-247.95,0.00014473,2]
[331039065,1720023043206,-247.95,0.00014477,2]
[331039066,1720023043215,-247.95,0.0001448,2]
[331039067,1720023043224,-2000.0,0.00014568,2]
[331039068,1720023043233,-200.0,0.00014568,2]
[331039070,1720023043242,-200.0,0.00014568,2]
[331039072,1720023043251,-200.0,0.00014568,2]
[331039074,1720023043260,-200.0,0.00014568,2]
[331039075,1720023043270,-2930.07666767,0.00014717,2]
[331039076,1720023043279,-5448.47007584,0.000148,2]
[331039077,1720023043288,-2615.04901251,0.00014899,2]
[331039078,1720023043298,-276.15184313,0.00014966,2]
[331039079,1720023043312,-276.15184313,0.00014966,2]
[331039080,1720023043321,-200.89408511,0.00014966,2]
[331039081,1720023043331,-450.32528097,0.00014999,2]
[331039082,1720023043341,-24647.33991007,0.00015,2]
[331039083,1720023043352,-2728.54098825,0.00015,2]
[331039084,1720023043361,-1000.0,0.00015009,2]
[331039085,1720023043370,-420.0,0.00015011,2]
[331039086,1720023043380,-227.12084219,0.00015335,2]
[331039087,1720023043391,-23900.0,0.00015448,2]
[331039088,1720023043400,-250.0,0.00015527,2]
[331039089,1720023043409,-2930.07666767,0.00015535,2]
[331039090,1720023043419,-1094.50291825,0.00015535,2]
[331039091,1720023043428,-169.87,0.00015564,2]
[331039092,1720023043437,-5448.47007584,0.000157,2]
[331039093,1720023043446,-275.0502675,0.00015775,2]
[331039094,1720023043456,-162.41,0.00015824,2]
[331039095,1720023043464,-533.28582048,0.00015832,2]
[331039096,1720023043474,-1852.42,0.00015957,2]
[331039097,1720023043484,-517.38,0.00015969,2]
[331039098,1720023043494,-2375.18638309,0.00016172,2]
[331039099,1720023043503,-433.27749902,0.00016315,2]
[331039100,1720023043512,-155.0,0.00016315,2]
[331039101,1720023043522,-196.93,0.0001633,2]
[331039102,1720023043531,-2930.07666767,0.00016352,2]
[331039103,1720023043540,-587.0,0.00016451,2]
[331039104,1720023043549,-5448.47007584,0.000166,2]
[331039105,1720023043558,-1000.0,0.00016677,2]
[331039106,1720023043567,-270.77152152,0.00016699,2]
[331039107,1720023043576,-155.0,0.00016808,2]
[331039108,1720023043585,-2930.07666767,0.00017169,2]
[331039109,1720023043594,-202.25757491,0.00017253,2]
[331039110,1720023043605,-290.97986156,0.00017253,2]
[331039111,1720023043614,-292.8202463,0.00017259,2]
[331039112,1720023043623,-1566.96919788,0.000175,2]
[331039113,1720023043635,-1094.50291825,0.000175,2]
[331039114,1720023043651,-2413.76,0.000175,2]
[331039115,1720023043661,-373.23795971,0.000175,2]
[331039116,1720023043670,-3863.0,0.000176,3]
[331039117,1720023043680,-275.0502675,0.0001765,2]
[331039118,1720023043689,-766.0,0.000177,3]
[331039119,1720023043698,-2930.07666767,0.00017986,2]
[331039120,1720023043707,-183.79325565,0.00018,2]
[331039121,1720023043716,-823.0,0.00018028,2]
[331039122,1720023043726,-517.38,0.00018233,2]
[331039123,1720023043735,-1000.0,0.00018344,2]
[331039124,1720023043744,-5448.47007584,0.000184,2]
[331039125,1720023043753,-169.87,0.00018677,2]
[331039126,1720023043763,-2930.07666767,0.00018804,2]
[331039127,1720023043773,-158.09,0.000189,2]
[331039128,1720023043782,-1250.0,0.00019,2]
[331039129,1720023043791,-1166.37044,0.00019,2]
[331039130,1720023043801,-250.0,0.00019178,2]
[331039131,1720023043810,-437.22,0.00019178,2]
[331039132,1720023043819,-1034.88181533,0.000193,2]
[331039133,1720023043830,-4413.58826051,0.000193,2]
[331039134,1720023043839,-150.0,0.00019332,4]
[331039135,1720023043850,-174.58594608,0.00019451,2]
[331039136,1720023043860,-882.16736644,0.000195,2]
[331039137,1720023043869,-1250.0,0.000195,2]
[331039138,1720023043878,-275.0502675,0.00019525,2]
[331039139,1720023043887,-150.0,0.0001957,4]
[331039140,1720023043897,-2930.07666767,0.00019621,2]
[331039141,1720023043906,-1144.0,0.00019757,2]
[331039142,1720023043915,-150.0,0.00019809,4]
[331039143,1720023043925,-520.06850352,0.00019899,2]
[331039144,1720023043934,-291.0,0.00019945,2]
[331039145,1720023043943,-5809.0,0.00019945,2]
[331039146,1720023043952,-5176.0,0.00019945,2]
[331039147,1720023043962,-1663.0,0.00019945,2]
[331039148,1720023043971,-1196.0,0.00019945,2]
[331039149,1720023043980,-35438.455,0.00019945,2]
[331039150,1720023043989,-1070.0,0.00019945,2]
[331039151,1720023043999,-499.499,0.00019964,2]
[331039152,1720023044008,-581.49834426,0.0002,2]
[331039153,1720023044017,-550.6201206,0.0002,2]
[331039154,1720023044027,-500.0,0.0002,2]
[331039155,1720023044037,-261.19528246,0.0002,3]
[331039156,1720023044047,-7434.71564717,0.0002,3]
[331039162,1720023045612,-652.01494411,0.0002,3]
[331039168,1720023046152,-1061.44519182,0.0002,3]
[331039169,1720023046178,-3608.71955548,0.0002,3]
[331039170,1720023046188,-327.27195084,0.0002,2]